[Event "Prague Open 2025"]
[Site "Prague"]
[Date "2025.01.13"]
[Round "5.5"]
[White "Mannion, Stephen R"]
[Black "Marek, Matyas"]
[Result "1/2-1/2"]
[Annotator "ChessBase"]
[ECO "B61"]
[WhiteElo "2159"]
[BlackElo "2314"]
[PlyCount "104"]
[EventDate "2025.01.07"]
[EventType "swiss"]
[EventCountry "CZE"]
[SourceTitle "playchess.com"]
[Source "ChessBase"]
[SourceQuality "1"]
[TimeControl "40/5400+30:1800+30"]

1. e4 {[%emt 0:00:02]} c5 {[%emt 0:00:05]} 2. Nf3 {[%emt 0:00:05]} d6 {[%emt 0:00:03]} 3. d4 {[%emt 0:00:06]} cxd4 {[%emt 0:00:03]} 4. Nxd4 {[%emt 0:00:06]} Nf6 {[%emt 0:00:03]} 5. Nc3 {[%emt 0:00:07]} Nc6 {[%emt 0:00:03]} 6. Bg5 {[%emt 0:00:15]} Bd7 {[%emt 0:00:08]} 7. Qd2 {[%emt 0:02:45]} Rc8 {[%emt 0:00:11]} 8. O-O-O {[%emt 0:01:00]} Nxd4 {[%emt 0:00:53]} 9. Qxd4 {[%emt 0:00:13]} Qa5 {[%emt 0:00:25]} 10. f4 {[%emt 0:00:18]} h6 {[%emt 0:00:54]} 11. Bxf6 {[%emt 0:02:50]} gxf6 {[%emt 0:00:04]} 12. Be2 {[%emt 0:06:06]} Qc5 {[%emt 0:01:00]} 13. Qd3 {[%emt 0:00:48]} h5 {[%emt 0:02:01]} 14. Kb1 {[%emt 0:00:51]} Bg7 {[%emt 0:02:55]} 15. Qg3 {[%emt 0:09:28]} Kf8 {[%emt 0:03:17]} 16. Rd5 {[%emt 0:07:24]} h4 {[%emt 0:02:42]} 17. Qf3 {[%emt 0:00:53]} Qb6 {[%emt 0:00:53]} 18. f5 {[%emt 0:00:10]} Bh6 {[%emt 0:05:26]} 19. Rd3 {[%emt 0:13:29]} Qc5 {[%emt 0:01:38]} 20. Rhd1 {[%emt 0:06:30]} Qe5 {[%emt 0:02:33]} 21. g3 {[%emt 0:00:16]} hxg3 {[%emt 0:05:30]} 22. hxg3 {[%emt 0:00:03]} Qc5 {[%emt 0:00:42]} 23. a3 {[%emt 0:19:38]} Bg5 {[%emt 0:02:13]} 24. Rd5 {[%emt 0:00:18]} Qe3 {[%emt 0:02:03]} 25. R5d3 {[%emt 0:04:15]} Qxf3 {[%emt 0:01:48]} 26. Rxf3 {[%emt 0:00:44]} Rh2 {[%emt 0:01:11]} 27. Bd3 {[%emt 0:00:05]} Kg7 {[%emt 0:05:57]} 28. Nd5 {[%emt 0:01:43]} e6 {[%emt 0:03:56]} 29. Nf4 {[%emt 0:04:57]} Rc5 {[%emt 0:04:31]} 30. Ne2 {[%emt 0:07:16]} Kf8 {[%emt 0:07:00]} 31. Nd4 {[%emt 0:01:31]} Ke7 {[%emt 0:01:29]} 32. c3 {[%emt 0:02:59]} a6 {[%emt 0:02:20]} 33. Bc2 {[%emt 0:00:49]} e5 {[%emt 0:31:16]} 34. Nb3 {[%emt 0:00:03]} Ba4 {[%emt 0:00:19]} 35. Rfd3 {[%emt 0:06:00]} Rc6 {[%emt 0:01:09]} 36. Nd4 {[%emt 0:00:14]} Rb6 {[%emt 0:06:59]} 37. b4 {[%emt 0:00:01]} Bxc2+ {[%emt 0:01:46]} 38. Nxc2 {[%emt 0:00:03]} Re2 {[%emt 0:00:41]} 39. Re1 {[%emt 0:00:17]} Rxe1+ {[%emt 0:00:32]} 40. Nxe1 {[%emt 0:00:02]} Rc6 {[%emt 0:00:10]} 41. Nf3 {[%emt 0:33:02]} Bh6 {[%emt 0:07:00]} 42. Nh2 {[%emt 0:00:00]} Rc4 {[%emt 0:00:21]} 43. Ng4 {[%emt 0:00:00]} Bg5 {[%emt 0:00:03]} 44. Nf2 {[%emt 0:00:00]} d5 {[%emt 0:00:20]} 45. Rxd5 {[%emt 0:00:00]} Rxc3 {[%emt 0:00:33]} 46. Rd3 {[%emt 0:00:00]} Rc1+ {[%emt 0:00:23]} 47. Kb2 {[%emt 0:00:00]} Re1 {[%emt 0:00:22]} 48. Rc3 {[%emt 0:00:00]} Be3 {[%emt 0:03:37]} 49. Nd3 {[%emt 0:00:00]} Re2+ {[%emt 0:00:06]} 50. Kb3 {[%emt 0:00:00]} Kd6 {[%emt 0:02:16]} 51. Rc2 {[%emt 0:00:00]} Rxc2 {[%emt 0:05:31]} 52. Kxc2 {[%emt 0:00:00]} b5 {[%emt 0:00:13]} 1/2-1/2

[Event "Prague Open 2025"]
[Site "Prague"]
[Date "2025.01.13"]
[Round "5.6"]
[White "Radzimski, Antoni"]
[Black "Salgovic, Simon"]
[Result "1-0"]
[Annotator "NA RC"]
[ECO "E47"]
[WhiteElo "2289"]
[BlackElo "2102"]
[PlyCount "37"]
[EventDate "2025.01.07"]
[EventType "swiss"]
[EventCountry "CZE"]
[SourceTitle "playchess.com"]
[Source "ChessBase"]
[SourceQuality "1"]
[TimeControl "40/5400+30:1800+30"]

1. d4 {[%emt 0:00:03]} Nf6 {[%emt 0:07:39]} 2. c4 {[%emt 0:00:06]} e6 {[%emt 0:02:29]} 3. Nc3 {[%emt 0:00:53]} Bb4 {[%emt 0:00:54]} 4. e3 {[%emt 0:00:06]} O-O {[%emt 0:05:00]} 5. Bd3 {[%emt 0:00:21]} d6 {[%emt 0:04:01]} 6. Nge2 {[%emt 0:02:55]} e5 {[%emt 0:15:46]} 7. O-O {[%emt 0:04:23]} Bxc3 {[%emt 0:08:09]} 8. Nxc3 {[%emt 0:02:18]} Nc6 {[%emt 0:01:22]} 9. dxe5 {[%emt 0:07:09]} dxe5 {[%emt 0:15:49]} 10. a3 {[%emt 0:03:47]} Qe7 {[%emt 0:14:35]} 11. Qc2 {[%emt 0:01:01]} Be6 {[%emt 0:03:49]} 12. b4 {[%emt 0:03:07]} Rfd8 {[%emt 0:06:31]} 13. Bb2 {[%emt 0:03:43]} a5 {[%emt 0:04:19]} 14. b5 {[%emt 0:01:07]} Nb8 {[%emt 0:01:19]} 15. Ne4 {[%emt 0:01:17]} Nbd7 {[%emt 0:01:40]} 16. Nxf6+ {[%emt 0:00:46]} Qxf6 {[%emt 0:01:58]} 17. Bxh7+ {[%emt 0:00:35]} Kh8 {[%emt 0:00:06]} 18. Be4 {[%emt 0:01:09]} Rab8 {[%emt 0:03:02]} 19. f4 {[%emt 0:02:06]} 1-0

[Event "Prague Open 2025"]
[Site "Prague"]
[Date "2025.01.13"]
[Round "5.7"]
[White "Mensing, Adrian"]
[Black "Sokhor, Nazar"]
[Result "0-1"]
[Annotator "ChessBase"]
[ECO "D00"]
[WhiteElo "2028"]
[BlackElo "2265"]
[PlyCount "122"]
[EventDate "2025.01.07"]
[EventType "swiss"]
[EventCountry "CZE"]
[SourceTitle "playchess.com"]
[Source "ChessBase"]
[SourceQuality "1"]
[TimeControl "40/5400+30:1800+30"]

1. d4 {[%emt 0:00:07]} d5 {[%emt 0:00:07]} 2. Nc3 {[%emt 0:00:14]} Nf6 {[%emt 0:00:23]} 3. Bf4 {[%emt 0:00:10]} c5 {[%emt 0:01:03]} 4. e3 {[%emt 0:00:12]} a6 {[%emt 0:01:44]} 5. Nf3 {[%emt 0:01:26]} cxd4 {[%emt 0:03:01]} 6. exd4 {[%emt 0:00:13]} Nc6 {[%emt 0:01:02]} 7. Ne5 {[%emt 0:00:15]} Qb6 {[%emt 0:00:58]} 8. Na4 {[%emt 0:04:04]} Qa5+ {[%emt 0:00:32]} 9. c3 {[%emt 0:00:10]} e6 {[%emt 0:07:06]} 10. Nxc6 {[%emt 0:02:12]} bxc6 {[%emt 0:00:02]} 11. Bd3 {[%emt 0:00:43]} Nd7 {[%emt 0:00:56]} 12. O-O {[%emt 0:02:35]} Qd8 {[%emt 0:03:14]} 13. Re1 {[%emt 0:02:10]} c5 {[%emt 0:04:34]} 14. Qf3 {[%emt 0:11:18]} Bb7 {[%emt 0:04:42]} 15. Nxc5 {[%emt 0:16:40]} Nxc5 {[%emt 0:01:35]} 16. dxc5 {[%emt 0:00:11]} Bxc5 {[%emt 0:00:14]} 17. Qg3 {[%emt 0:00:51]} O-O {[%emt 0:02:36]} 18. Re5 {[%emt 0:16:04]} Qd7 {[%emt 0:21:25]} 19. Rae1 {[%emt 0:19:29]} Rfe8 {[%emt 0:03:28]} 20. Bxh7+ {[%emt 0:13:21]} Kxh7 {[%emt 0:00:48]} 21. Rh5+ {[%emt 0:01:31]} Kg8 {[%emt 0:00:07]} 22. Be5 {[%emt 0:01:23]} f6 {[%emt 0:02:23]} 23. Bxf6 {[%emt 0:03:22]} Rf8 {[%emt 0:13:54]} 24. Rh6 {[%emt 0:00:19]} Rf7 {[%emt 0:01:50]} 25. Bd4 {[%emt 0:03:10]} Bxd4 {[%emt 0:01:54]} 26. cxd4 {[%emt 0:00:02]} Raf8 {[%emt 0:03:09]} 27. Qg6 {[%emt 0:00:24]} Rxf2 {[%emt 0:04:23]} 28. Qh7+ {[%emt 0:00:09]} Kf7 {[%emt 0:00:04]} 29. Rg6 {[%emt 0:01:11]} Ke8 {[%emt 0:02:19]} 30. Rgxe6+ {[%emt 0:00:59]} Kd8 {[%emt 0:00:12]} 31. Qh4+ {[%emt 0:00:09]} R2f6 {[%emt 0:02:34]} 32. h3 {[%emt 0:00:54]} Bc8 {[%emt 0:04:36]} 33. Rb6 {[%emt 0:00:29]} Qc7 {[%emt 0:01:28]} 34. Rb3 {[%emt 0:00:29]} Qf4 {[%emt 0:00:12]} 35. Qxf4 {[%emt 0:00:32]} Rxf4 {[%emt 0:00:02]} 36. Rg3 {[%emt 0:00:28]} R8f7 {[%emt 0:00:29]} 37. Rd3 {[%emt 0:00:33]} Re4 {[%emt 0:01:10]} 38. Rc1 {[%emt 0:00:20]} Re2 {[%emt 0:04:05]} 39. Rc6 {[%emt 0:00:27]} Rxb2 {[%emt 0:00:29]} 40. a3 {[%emt 0:00:42]} Rbb7 {[%emt 0:01:19]} 41. g4 {[%emt 0:05:00]} Rbc7 {[%emt 0:00:14]} 42. Rd6+ {[%emt 0:00:33]} Rfd7 {[%emt 0:00:13]} 43. Rg6 {[%emt 0:01:00]} Rc2 {[%emt 0:00:13]} 44. Rf3 {[%emt 0:01:42]} Re7 {[%emt 0:04:52]} 45. Rf2 {[%emt 0:04:52]} Rxf2 {[%emt 0:05:40]} 46. Kxf2 {[%emt 0:00:09]} Ke8 {[%emt 0:01:05]} 47. Kf3 {[%emt 0:03:05]} Kf7 {[%emt 0:00:20]} 48. Rd6 {[%emt 0:00:25]} Re6 {[%emt 0:00:56]} 49. Rd8 {[%emt 0:00:26]} Bb7 {[%emt 0:04:39]} 50. h4 {[%emt 0:03:23]} Bc6 {[%emt 0:00:39]} 51. h5 {[%emt 0:02:44]} Kf6 {[%emt 0:03:26]} 52. Kf4 {[%emt 0:05:22]} Re4+ {[%emt 0:00:25]} 53. Kf3 {[%emt 0:00:01]} Kg5 {[%emt 0:01:32]} 54. Rd6 {[%emt 0:00:23]} Rf4+ {[%emt 0:00:07]} 55. Ke3 {[%emt 0:00:14]} Rf6 {[%emt 0:00:09]} 56. Rd8 {[%emt 0:02:05]} Kxg4 {[%emt 0:00:09]} 57. Rg8 {[%emt 0:00:51]} Rf3+ {[%emt 0:00:06]} 58. Kd2 {[%emt 0:00:31]} Kxh5 {[%emt 0:00:06]} 59. Rxg7 {[%emt 0:00:33]} Rxa3 {[%emt 0:00:10]} 60. Kc2 {[%emt 0:01:04]} Ba4+ {[%emt 0:00:10]} 61. Kd2 {[%emt 0:00:24]} Bb5 {[%emt 0:00:22]} 0-1

[Event "Prague Open 2025"]
[Site "Prague"]
[Date "2025.01.13"]
[Round "5.8"]
[White "Felix, Raphael"]
[Black "Vardanyan, Aras"]
[Result "0-1"]
[Annotator "TA"]
[ECO "B57"]
[WhiteElo "2127"]
[BlackElo "2312"]
[PlyCount "104"]
[EventDate "2025.01.07"]
[EventType "swiss"]
[EventCountry "CZE"]
[SourceTitle "playchess.com"]
[Source "ChessBase"]
[SourceQuality "1"]
[TimeControl "40/5400+30:1800+30"]

{[%evp 12,104,30,24,34,10,17,-12,8,-11,-4,-16,-10,-12,-18,-4,0,-12,-8,-98,-78,-111,-67,-72,-69,-77,-69,-81,-83,-80,-60,-71,-50,-61,-44,-74,-38,-72,-44,-76,-60,-72,-70,-69,-62,-84,-72,-69,-86,-62,-53,-84,-112,-147,-146,-287,-310,-302,-300,-296,-281,-534,-531,-686,-649,-689,-686,-923,-918,-990,-937,-940,-928,-1158,-1132,-1901,-1882,-1460,-1872,-1814,-1743,-2192,-1498,-29980,-29981,-29984,-29985,-29986,-29986,-29989,-29989,-29989,-29990,-29996,-29997]} 1. e4 {[%emt 0:00:25]} c5 {[%emt 0:00:10]} 2. Nf3 {[%emt 0:00:35]} d6 {[%emt 0:00:07]} 3. d4 {[%emt 0:00:40]} cxd4 {[%emt 0:00:07]} 4. Nxd4 {[%emt 0:00:30]} Nf6 {[%emt 0:00:07]} 5. Nc3 {[%emt 0:00:23]} Nc6 {[%emt 0:00:07]} 6. Bc4 {[%emt 0:00:36]} Bd7 {[%emt 0:02:10]} 7. Be3 {[%emt 0:01:44]} Rc8 {[%emt 0:07:50]} 8. Nxc6 {[%emt 0:08:47]} Bxc6 {[%emt 0:01:03]} 9. Bd3 {[%emt 0:00:54][%cal Oc3b5]} (9. Bxa7 Nxe4 10. Nxe4 Qa5+ 11. Qd2 Qxa7 $15) 9... a6 {[%emt 0:04:06]} 10. Qe2 {[%emt 0:15:03]} g6 {[%emt 0:05:36]} 11. Rd1 {[%emt 0:01:44]} Qa5 {[%emt 0:04:50]} 12. O-O {[%emt 0:04:25]} Bg7 {[%emt 0:04:05]} 13. a3 {[%emt 0:13:31]} O-O {[%emt 0:03:18]} 14. Qd2 {[%emt 0:17:54][%cal Oc3d5]} Rfe8 {[%emt 0:02:23]} 15. Nb1 {[%emt 0:00:20]} (15. Bd4 $11) 15... Qxd2 {[%emt 0:03:56]} 16. Nxd2 {[%emt 0:00:46][%cal Bb1d2,Bd2f3,Bf3d4,Bd4b3][%mdl 32]} Ng4 {[%emt 0:00:35]} 17. c3 {[%emt 0:01:19]} Nxe3 {[%emt 0:00:43]} 18. fxe3 {[%emt 0:00:04]} b5 {[%emt 0:04:56]} 19. Nf3 {[%emt 0:07:01]} Rb8 {[%emt 0:03:10]} 20. Nd4 {[%emt 0:01:24]} Ba8 {[%emt 0:00:28]} 21. Kf2 {[%emt 0:01:57]} Rec8 {[%emt 0:01:47]} 22. Rd2 {[%emt 0:00:53]} Rc5 {[%emt 0:05:12]} 23. Ke2 {[%emt 0:02:17]} Bh6 {[%emt 0:03:26]} 24. Bb1 {[%emt 0:01:28]} a5 {[%emt 0:04:14]} 25. Nb3 {[%emt 0:02:05]} Rg5 {[%emt 0:02:05] Threatens to win with ...b4.} 26. g3 {[%emt 0:00:57]} b4 {[%emt 0:01:09]} 27. cxb4 {[%emt 0:04:01]} axb4 {[%emt 0:00:08]} 28. a4 {[%emt 0:00:30]} Rh5 $36 {[%emt 0:05:04][%mdl 2048] Black has strong initiative.} 29. h4 {[%emt 0:02:40]} Bc6 {[%emt 0:06:32]} 30. a5 {[%emt 0:00:39]} Re5 {[%emt 0:04:15]} 31. Rd4 {[%emt 0:02:56]} Ba4 {[%emt 0:01:01] This pair of bishops is nice.} 32. Bc2 {[%emt 0:00:36]} Rc8 {[%emt 0:01:41] Black is more active.} 33. Rd2 {[%emt 0:01:29] [#]} (33. Kd2 $17 Bxe3+ (33... Rxa5 34. Rxb4 Ra7 35. Nd4 $17) 34. Kxe3 Rxc2 35. Ra1 Bxb3 36. a6) 33... Rxc2 $1 $19 {[%emt 0:03:52]} 34. Rxc2 {[%emt 0:00:02] Rc8+ would now be deadly.} Bxb3 {[%emt 0:00:15]} 35. Rc8+ {[%emt 0:00:33]} Kg7 {[%emt 0:00:11]} 36. g4 $2 {[%emt 0:02:20]} (36. Ra1) 36... Be6 {[%emt 0:00:33]} ({Not} 36... Rxe4 37. g5 Bc4+ 38. Rxc4 Rxc4 39. gxh6+ Kxh6 40. a6 $11) 37. Ra8 {[%emt 0:00:55]} Bc4+ {[%emt 0:00:13]} 38. Kf2 {[%emt 0:00:13]} Bxf1 {[%emt 0:00:27]} 39. g5 {[%emt 0:00:20] [#]} Bxg5 $1 {[%emt 0:00:34]} 40. Kxf1 {[%emt 0:00:26]} (40. hxg5 Bd3) 40... Bxe3 {[%emt 0:00:11][%mdl 4096] Endgame KRB-KR} 41. a6 {[%emt 0:30:08]} Ra5 {[%emt 0:30:22]} 42. Rb8 {[%emt 0:00:14]} Rxa6 {[%emt 0:00:10]} 43. Rxb4 {[%emt 0:00:03]} Rb6 {[%emt 0:00:11]} 44. Ra4 {[%emt 0:00:06]} Rxb2 {[%emt 0:00:08]} 45. Ra3 {[%emt 0:00:18]} Bc5 {[%emt 0:00:07]} 46. Ra4 {[%emt 0:00:18]} Kf6 {[%emt 0:00:06]} 47. h5 {[%emt 0:00:12]} h6 {[%emt 0:00:07]} 48. hxg6 {[%emt 0:00:07]} fxg6 {[%emt 0:00:07]} 49. Rc4 {[%emt 0:00:18]} g5 {[%emt 0:00:11]} 50. Ra4 {[%emt 0:00:05]} g4 {[%emt 0:00:06]} 51. e5+ {[%emt 0:00:04]} Kf5 {[%emt 0:00:05]} 52. exd6 {[%emt 0:00:25]} g3 {[%emt 0:00:17]} 0-1

[Event "Prague Open 2025"]
[Site "Prague"]
[Date "2025.01.13"]
[Round "5.9"]
[White "Shapovalovi, Vasiko"]
[Black "Lalic, Bogdan"]
[Result "1/2-1/2"]
[Annotator "ChessBase"]
[ECO "A37"]
[WhiteElo "2078"]
[BlackElo "2321"]
[PlyCount "28"]
[EventDate "2025.01.07"]
[EventType "swiss"]
[EventCountry "CZE"]
[SourceTitle "playchess.com"]
[Source "ChessBase"]
[SourceQuality "1"]
[TimeControl "40/5400+30:1800+30"]

1. Nf3 {[%emt 0:04:20]} c5 {[%emt 0:00:06]} 2. c4 {[%emt 0:00:15]} Nc6 {[%emt 0:00:10]} 3. g3 {[%emt 0:00:13]} g6 {[%emt 0:00:10]} 4. Bg2 {[%emt 0:00:20]} Bg7 {[%emt 0:00:11]} 5. Nc3 {[%emt 0:00:12]} d6 {[%emt 0:00:21]} 6. O-O {[%emt 0:00:41]} e6 {[%emt 0:01:03]} 7. a3 {[%emt 0:04:12]} Nge7 {[%emt 0:00:14]} 8. Rb1 {[%emt 0:00:14]} a5 {[%emt 0:02:50]} 9. d3 {[%emt 0:00:16]} O-O {[%emt 0:00:21]} 10. Bd2 {[%emt 0:00:29]} d5 {[%emt 0:00:58]} 11. Qc1 {[%emt 0:08:23]} dxc4 {[%emt 0:01:59]} 12. dxc4 {[%emt 0:01:44]} Nf5 {[%emt 0:00:13]} 13. Rd1 {[%emt 0:03:00]} Qe7 {[%emt 0:00:48]} 14. Bg5 {[%emt 0:05:35]} f6 {[%emt 0:00:40]} 1/2-1/2

[Event "Prague Open 2025"]
[Site "Prague"]
[Date "2025.01.13"]
[Round "5.10"]
[White "Golis, Wiktor"]
[Black "Filindash, Nikita"]
[Result "1/2-1/2"]
[Annotator "TA"]
[ECO "C43"]
[WhiteElo "2314"]
[BlackElo "2072"]
[PlyCount "79"]
[EventDate "2025.01.07"]
[EventType "swiss"]
[EventCountry "CZE"]
[SourceTitle "playchess.com"]
[Source "ChessBase"]
[SourceQuality "1"]
[TimeControl "40/5400+30:1800+30"]

{[%evp 14,79,24,19,18,20,23,17,19,26,6,18,12,11,41,44,41,46,38,37,27,23,49,39,52,53,53,45,62,62,56,31,35,20,23,18,39,18,19,16,16,16,25,24,25,22,27,22,22,22,22,22,23,23,25,10,11,0,26,0,6,0,0,0,0,0,0,0]} 1. e4 {[%emt 0:00:03]} e5 {[%emt 0:00:05]} 2. Nf3 {[%emt 0:00:04]} Nf6 {[%emt 0:00:05]} 3. d4 {[%emt 0:00:11]} Nxe4 {[%emt 0:00:12]} 4. Bd3 {[%emt 0:00:03]} d5 {[%emt 0:00:08]} 5. Nxe5 {[%emt 0:00:07]} Nd7 {[%emt 0:00:19]} 6. Nxd7 {[%emt 0:00:04]} Bxd7 {[%emt 0:00:14]} 7. O-O {[%emt 0:00:06]} Bd6 {[%emt 0:03:46]} 8. Qh5 {[%emt 0:00:18]} Qf6 {[%emt 0:00:12]} 9. Nc3 {[%emt 0:01:11]} Qxd4 {[%emt 0:20:39]} 10. Be3 {[%emt 0:00:25]} Qe5 {[%emt 0:00:27]} 11. Qxe5+ {[%emt 0:00:06]} Bxe5 {[%emt 0:00:05]} 12. Nxd5 {[%emt 0:00:05]} Nf6 {[%emt 0:01:12][%cal Be4f6,Bf6d5,Bd5b6][%mdl 32] [#]} 13. Rae1 $1 {[%emt 0:01:39][%cal Oe3d4]} Be6 {[%emt 0:15:26]} (13... Nxd5 $5 14. Bd4 O-O (14... f6 15. Bxe5 O-O-O 16. Bg3 $14) 15. Bxe5 (15. Rxe5 Nf4 $14) 15... Nb4 $14) 14. Nf4 {[%emt 0:11:58]} Bxf4 $1 {[%emt 0:03:55]} 15. Bxf4 {[%emt 0:00:22]} Nd5 {[%emt 0:01:45]} 16. Be5 {[%emt 0:02:30] A strong pair of Bishops.} O-O {[%emt 0:00:40]} 17. a3 {[%emt 0:00:23] Against Nb4} f6 {[%emt 0:12:41]} 18. Bg3 {[%emt 0:01:20]} Bf7 {[%emt 0:00:57]} 19. c4 {[%emt 0:05:52]} Nb6 {[%emt 0:00:10]} 20. b3 {[%emt 0:00:02]} Rad8 {[%emt 0:08:58]} 21. Bb1 {[%emt 0:24:36]} c6 {[%emt 0:07:46][%cal Ob6c4]} 22. f3 {[%emt 0:16:08]} Bg6 {[%emt 0:09:09]} 23. Bxg6 {[%emt 0:02:19]} hxg6 {[%emt 0:00:01]} 24. Rd1 {[%emt 0:02:59]} Kf7 {[%emt 0:03:22]} 25. Bc7 {[%emt 0:00:50]} Rxd1 {[%emt 0:04:08]} 26. Rxd1 $11 {[%emt 0:00:01][%mdl 4096] Endgame Black must now prevent Bxb6. KRB-KRN} Re8 {[%emt 0:02:47]} 27. Kf2 {[%emt 0:05:47]} Re7 {[%emt 0:02:07]} 28. Bxb6 {[%emt 0:08:21]} axb6 {[%emt 0:00:05] KR-KR} 29. f4 {[%emt 0:00:16]} Rc7 {[%emt 0:01:49]} 30. Kf3 {[%emt 0:01:29]} Ke7 {[%emt 0:01:13]} 31. Kg4 {[%emt 0:01:12]} Ke8 {[%emt 0:00:56]} 32. g3 {[%emt 0:06:00]} Re7 {[%emt 0:00:12]} 33. Kf3 {[%emt 0:00:01] Prevents Re3+} Rc7 {[%emt 0:00:08]} 34. g4 {[%emt 0:03:27]} Re7 {[%emt 0:00:29]} 35. Rd3 {[%emt 0:00:28]} Rc7 {[%emt 0:00:52]} 36. f5 {[%emt 0:01:46]} g5 {[%emt 0:00:54]} 37. b4 {[%emt 0:00:59]} Ke7 {[%emt 0:00:18]} 38. c5 {[%emt 0:00:57]} b5 {[%emt 0:00:16]} 39. Kg3 {[%emt 0:03:27]} Rc8 {[%emt 0:00:09]} 40. Re3+ {[%emt 0:00:39]} 1/2-1/2

[Event "Prague Open 2025"]
[Site "Prague"]
[Date "2025.01.13"]
[Round "5.11"]
[White "Kulhanek, Tomas"]
[Black "Polak, Michal"]
[Result "1-0"]
[Annotator "TA"]
[ECO "B31"]
[WhiteElo "2313"]
[BlackElo "2037"]
[PlyCount "107"]
[EventDate "2025.01.07"]
[EventType "swiss"]
[EventCountry "CZE"]
[SourceTitle "playchess.com"]
[Source "ChessBase"]
[SourceQuality "1"]
[TimeControl "40/5400+30:1800+30"]

{[%evp 17,107,0,0,0,10,0,0,0,0,0,0,0,14,0,0,0,0,0,0,0,0,-38,-38,-45,-35,-32,0,-13,-13,-15,0,0,0,0,25,0,46,45,89,41,58,60,53,58,58,66,61,46,132,125,337,344,314,341,327,328,329,328,280,308,395,394,462,426,587,587,998,977,952,904,1348,1180,1119,835,632,475,29965,29967,29970,29971,29972,29973,29969,29970,29970,29970,29974,29940,29970,29971,29944,11226]} 1. e4 {[%emt 0:00:04]} c5 {[%emt 0:00:11]} 2. Nf3 {[%emt 0:00:08]} Nc6 {[%emt 0:00:09]} 3. Bb5 {[%emt 0:02:10]} g6 {[%emt 0:00:21]} 4. O-O {[%emt 0:00:19]} Bg7 {[%emt 0:00:06]} 5. c3 {[%emt 0:00:15][%cal Bc2c3,Bc3d4][%mdl 32]} e5 {[%emt 0:00:11]} 6. d3 {[%emt 0:00:18]} Nge7 {[%emt 0:00:24]} 7. Be3 {[%emt 0:00:16]} d6 {[%emt 0:00:36]} 8. d4 {[%emt 0:00:11]} exd4 {[%emt 0:00:57]} 9. cxd4 {[%emt 0:00:02]} O-O {[%emt 0:02:28]} 10. Nc3 {[%emt 0:00:25]} Qb6 {[%emt 0:07:45][%cal Rc5d4]} 11. Bxc6 {[%emt 0:04:28]} Nxc6 {[%emt 0:05:55]} 12. Rb1 {[%emt 0:00:41]} Bg4 {[%emt 0:11:30]} (12... Bxd4 13. Nd5 Qd8 14. Nxd4 Nxd4 15. Bxd4 cxd4 16. Qxd4 $16) (12... Nxd4 $6 13. Nxd4 cxd4 14. Nd5 $16) 13. dxc5 {[%emt 0:01:50]} dxc5 {[%emt 0:00:29]} 14. Nd5 {[%emt 0:00:17]} Qa5 {[%emt 0:01:47][%cal Of7f5]} 15. Qb3 {[%emt 0:00:35]} Bxf3 {[%emt 0:00:56]} 16. gxf3 {[%emt 0:00:02]} Nd4 {[%emt 0:18:33]} 17. Bxd4 {[%emt 0:01:58]} Bxd4 {[%emt 0:02:15]} 18. f4 {[%emt 0:05:13]} Kg7 {[%emt 0:14:25]} 19. Rbd1 {[%emt 0:24:15][%cal Oe4e5]} Rad8 {[%emt 0:04:24]} 20. Kh1 {[%emt 0:19:14]} Qa6 {[%emt 0:01:25]} 21. f3 {[%emt 0:07:01]} Qe2 {[%emt 0:01:28]} (21... Rd7 {simplifies} 22. Rc1 b6 23. Rfe1 Qc8) 22. Qd3 {[%emt 0:02:20]} Qxd3 {[%emt 0:04:46]} (22... Qxb2 $2 23. Rd2 c4 24. Qxd4+ $18) 23. Rxd3 {[%emt 0:00:01]} Bxb2 {[%emt 0:02:13]} 24. Rb3 $1 {[%emt 0:00:22][%csl LRb2,LRb7]} Bd4 {[%emt 0:00:15]} 25. Rxb7 {[%emt 0:00:05][%cal Of1b1]} a5 {[%emt 0:07:16]} 26. Kg2 {[%emt 0:03:44]} h5 {[%emt 0:08:26]} (26... Rb8 $11 {deserves consideration.} 27. Rfb1 Rxb7 28. Rxb7 c4) 27. Rfb1 $14 {[%emt 0:09:24]} Rc8 {[%emt 0:00:48]} 28. Nb6 {[%emt 0:05:50] White is much more active.} (28. Kf1 $16) 28... Rb8 {[%emt 0:01:35]} 29. Nc4 {[%emt 0:00:14][%csl LRa5,LRb8]} Rxb7 {[%emt 0:00:57]} 30. Rxb7 {[%emt 0:00:02][%mdl 4096] Endgame KRB-KRN} Rd8 {[%emt 0:00:50]} 31. e5 {[%emt 0:02:27][%cal Oc4d6] and Nd6! would now be decisive} (31. Nxa5 Be3 $15) 31... Kg8 {[%emt 0:01:17]} 32. a4 {[%emt 0:01:02][%cal Ob7c7]} (32. Nxa5 Be3 $11) 32... Ba1 {[%emt 0:00:50]} (32... Bc3 $1 $14) 33. Nd6 $1 $16 {[%emt 0:04:11]} (33. Nxa5 $6 Rd4 $11) 33... f6 $2 {[%emt 0:00:16] [#]} (33... c4 $16 {is a better defense.}) 34. e6 $1 $18 {[%emt 0:01:24] Intending e7 and mate.} Rxd6 {[%emt 0:00:30] KRB-KR} 35. Rb8+ {[%emt 0:00:04]} Kg7 {[%emt 0:00:09]} 36. e7 {[%emt 0:00:02]} Re6 {[%emt 0:00:54]} ({Avoid the trap} 36... Rd2+ $2 37. Kf1 (37. Kh3 Re2 $18) 37... Rb2 38. e8=Q $18 (38. e8=N+ $2 Kf7 $19)) 37. e8=Q {[%emt 0:00:06]} (37. e8=B Re2+ 38. Kg3 Bd4 39. Rb7+ Kh6 $19) 37... Rxe8 {[%emt 0:00:02]} 38. Rxe8 {[%emt 0:00:06] KR-KB} Bc3 {[%emt 0:01:28]} 39. Rc8 {[%emt 0:01:43]} Bb4 {[%emt 0:00:22]} 40. Rc7+ {[%emt 0:00:46]} Kh6 {[%emt 0:00:46]} 41. h3 {[%emt 0:35:19]} h4 {[%emt 0:04:14]} 42. Kf2 {[%emt 0:00:00]} Ba3 {[%emt 0:08:06]} 43. Ke2 {[%emt 0:00:00]} f5 {[%emt 0:01:51]} 44. Kd3 {[%emt 0:00:00]} Bb4 {[%emt 0:02:20]} 45. Kc4 {[%emt 0:00:00]} Ba3 {[%emt 0:02:44]} 46. Kb5 {[%emt 0:00:00]} Bc1 {[%emt 0:06:30]} (46... Bb4 $18 47. Ra7 c4 48. Kxc4 Be1) 47. Kxa5 {[%emt 0:00:00]} Bxf4 {[%emt 0:00:08]} 48. Rxc5 {[%emt 0:00:00]} Be3 {[%emt 0:05:39]} 49. Rc4 {[%emt 0:00:00]} g5 {[%emt 0:00:50]} 50. Kb5 {[%emt 0:00:00]} f4 {[%emt 0:02:06]} 51. Re4 {[%emt 0:00:00]} Bd2 {[%emt 0:01:05]} 52. Re2 {[%emt 0:00:00]} Bc3 {[%emt 0:00:28]} 53. Kc4 {[%emt 0:00:00]} Ba5 {[%emt 0:00:21]} 54. Kd3 {[%emt 0:00:00]} (54. Re5 $142 Bc7 55. Rb5 g4 56. hxg4 (56. fxg4 Kg6 $18) 56... h3 57. a5 h2 58. Rh5+ Kg6 59. a6 (59. Rxh2 Bxa5 60. Re2 Kg7 $18)) 1-0